[Event "Titled Tuesday Blitz April 4 Early 2023"]
[White "Hovhannisyan, Robert"]
[Black "Prohaszka, Peter"]
[WhiteFideId "13302507"]
[BlackFideId "726265"]
[WhiteElo "2570"]
[BlackElo "2626"]
[Result "1-0"]
[Round "11"]
[TimeControl "180+2"]
[Date "2023.04.04"]
[WhiteClock "0:00:10"]
[BlackClock "0:00:01"]

1. e4 {[%clk 0:02:54]}  c6 {[%clk 0:02:49]} 2. Nf3 {[%clk 0:02:49]}  d5 {[%clk 0:02:50]} 3. d3 {[%clk 0:02:49]}  dxe4 {[%clk 0:02:45]} 4. dxe4 {[%clk 0:02:49]}  Qxd1+ {[%clk 0:02:46]} 5. Kxd1 {[%clk 0:02:50]}  g6 {[%clk 0:02:46]} 6. Ne5 {[%clk 0:02:42]}  Bg7 {[%clk 0:02:45]} 7. Bf4 {[%clk 0:02:27]}  Nd7 {[%clk 0:02:40]} 8. Nd3 {[%clk 0:02:23]}  e5 {[%clk 0:02:36]} 9. Be3 {[%clk 0:02:23]}  Bh6 {[%clk 0:02:29]} 10. Bxh6 {[%clk 0:02:22]}  Nxh6 {[%clk 0:02:30]} 11. Nd2 {[%clk 0:02:21]}  f6 {[%clk 0:02:29]} 12. a4 {[%clk 0:02:20]}  a5 {[%clk 0:02:29]} 13. g3 {[%clk 0:02:15]}  Nf7 {[%clk 0:02:24]} 14. Bh3 {[%clk 0:02:14]}  Ke7 {[%clk 0:02:23]} 15. Ke2 {[%clk 0:02:12]}  Rd8 {[%clk 0:02:08]} 16. Nc4 {[%clk 0:02:05]}  Nd6 {[%clk 0:01:55]} 17. Nxd6 {[%clk 0:02:02]}  Kxd6 {[%clk 0:01:56]} 18. Rhd1 {[%clk 0:02:00]}  Ke7 {[%clk 0:01:56]} 19. f4 {[%clk 0:01:50]}  b6 {[%clk 0:01:48]} 20. Ke3 {[%clk 0:01:49]}  exf4+ {[%clk 0:01:19]} 21. gxf4 {[%clk 0:01:48]}  Nf8 {[%clk 0:01:19]} 22. Bxc8 {[%clk 0:01:39]}  Raxc8 {[%clk 0:01:20]} 23. h4 {[%clk 0:01:27]}  Ne6 {[%clk 0:01:18]} 24. Rd2 {[%clk 0:01:19]}  Rd7 {[%clk 0:01:12]} 25. f5 {[%clk 0:00:54]}  gxf5 {[%clk 0:01:05]} 26. exf5 {[%clk 0:00:55]}  Ng7 {[%clk 0:01:05]} 27. Rf1 {[%clk 0:00:43]}  Re8 {[%clk 0:00:57]} 28. Rdf2 {[%clk 0:00:33]}  Kf7+ {[%clk 0:00:54]} 29. Kd2 {[%clk 0:00:33]}  Re4 {[%clk 0:00:49]} 30. Rf4 {[%clk 0:00:33]}  Rxf4 {[%clk 0:00:49]} 31. Rxf4 {[%clk 0:00:33]}  Rd5 {[%clk 0:00:49]} 32. b4 {[%clk 0:00:31]}  Nxf5 {[%clk 0:00:43]} 33. c4 {[%clk 0:00:28]}  Rd4 {[%clk 0:00:20]} 34. Rxf5 {[%clk 0:00:28]}  axb4 {[%clk 0:00:17]} 35. c5 {[%clk 0:00:25]}  bxc5 {[%clk 0:00:11]} 36. Rxc5 {[%clk 0:00:24]}  b3 {[%clk 0:00:11]} 37. Rxc6 {[%clk 0:00:18]}  Rxa4 {[%clk 0:00:10]} 38. h5 {[%clk 0:00:16]}  Rh4 {[%clk 0:00:09]} 39. Rc7+ {[%clk 0:00:16]}  Kg8 {[%clk 0:00:05]} 40. Rc5 {[%clk 0:00:15]}  Kf7 {[%clk 0:00:05]} 41. Kc3 {[%clk 0:00:12]}  Rh3 {[%clk 0:00:05]} 42. Rb5 {[%clk 0:00:12]}  Ke6 {[%clk 0:00:04]} 43. Kc4 {[%clk 0:00:10]}  Rh4+ {[%clk 0:00:03]} 44. Kxb3 {[%clk 0:00:11]}  f5 {[%clk 0:00:03]} 45. h6 {[%clk 0:00:11]}  Kf6 {[%clk 0:00:02]} 46. Rb6+ {[%clk 0:00:11]}  Kg5 {[%clk 0:00:02]} 47. Ne5 {[%clk 0:00:11]}  Rh3+ {[%clk 0:00:01]} 48. Kc4 {[%clk 0:00:11]}  f4 {[%clk 0:00:01]} 49. Kd5 {[%clk 0:00:10]} 1-0


[Site "https://www.chess.com"]

[Event "Titled Tuesday Blitz April 4 Early 2023"]
[White "Jessel, Stephen"]
[Black "Gharibyan, Mamikon"]
[WhiteFideId "628859"]
[BlackFideId "13308300"]
[WhiteElo "2268"]
[BlackElo "2445"]
[Result "1-0"]
[Round "11"]
[TimeControl "180+2"]
[Date "2023.04.04"]
[WhiteClock "0:00:14"]
[BlackClock "0:00:10"]

1. Nf3 {[%clk 0:02:57]}  d5 {[%clk 0:02:59]} 2. g3 {[%clk 0:02:55]}  g6 {[%clk 0:02:59]} 3. c4 {[%clk 0:02:54]}  dxc4 {[%clk 0:02:59]} 4. Na3 {[%clk 0:02:52]}  Bg7 {[%clk 0:02:59]} 5. Nxc4 {[%clk 0:02:53]}  Nc6 {[%clk 0:02:59]} 6. Bg2 {[%clk 0:02:51]}  e5 {[%clk 0:02:59]} 7. O-O {[%clk 0:02:48]}  e4 {[%clk 0:02:53]} 8. Ne1 {[%clk 0:02:49]}  Nf6 {[%clk 0:02:54]} 9. d3 {[%clk 0:02:49]}  Be6 {[%clk 0:02:49]} 10. Qa4 {[%clk 0:02:47]}  a6 {[%clk 0:02:38]} 11. Na5 {[%clk 0:02:34]}  Qd4 {[%clk 0:02:13]} 12. Qxd4 {[%clk 0:02:27]}  Nxd4 {[%clk 0:02:14]} 13. dxe4 {[%clk 0:02:27]}  Nxe2+ {[%clk 0:02:11]} 14. Kh1 {[%clk 0:02:27]}  O-O-O {[%clk 0:02:08]} 15. Bg5 {[%clk 0:02:19]}  c6 {[%clk 0:01:19]} 16. e5 {[%clk 0:02:14]}  Ng4 {[%clk 0:01:15]} 17. Bxd8 {[%clk 0:02:09]}  Rxd8 {[%clk 0:01:16]} 18. f4 {[%clk 0:01:56]}  Rd2 {[%clk 0:01:07]} 19. b3 {[%clk 0:01:25]}  Ne3 {[%clk 0:01:02]} 20. Rf3 {[%clk 0:00:53]}  Nxg2 {[%clk 0:00:38]} 21. Nxg2 {[%clk 0:00:53]}  Bd5 {[%clk 0:00:37]} 22. Nc4 {[%clk 0:00:48]}  Bxc4 {[%clk 0:00:20]} 23. bxc4 {[%clk 0:00:49]}  Bf8 {[%clk 0:00:21]} 24. Ne1 {[%clk 0:00:31]}  Bc5 {[%clk 0:00:17]} 25. Rd3 {[%clk 0:00:31]}  Rb2 {[%clk 0:00:15]} 26. a3 {[%clk 0:00:26]}  Nd4 {[%clk 0:00:11]} 27. Rad1 {[%clk 0:00:23]}  Ne6 {[%clk 0:00:05]} 28. Nf3 {[%clk 0:00:19]}  b5 {[%clk 0:00:03]} 29. cxb5 {[%clk 0:00:19]}  axb5 {[%clk 0:00:04]} 30. Rc3 {[%clk 0:00:19]}  Kb7 {[%clk 0:00:02]} 31. Rd7+ {[%clk 0:00:16]}  Kb6 {[%clk 0:00:02]} 32. Rxf7 {[%clk 0:00:17]}  h5 {[%clk 0:00:02]} 33. Rf6 {[%clk 0:00:17]}  Nd4 {[%clk 0:00:02]} 34. Nxd4 {[%clk 0:00:16]}  Bxd4 {[%clk 0:00:03]} 35. Rcxc6+ {[%clk 0:00:16]}  Kb7 {[%clk 0:00:03]} 36. Rc1 {[%clk 0:00:15]}  Be3 {[%clk 0:00:03]} 37. Re1 {[%clk 0:00:15]}  Bf2 {[%clk 0:00:04]} 38. Rf1 {[%clk 0:00:15]}  h4 {[%clk 0:00:04]} 39. Rxg6 {[%clk 0:00:14]}  h3 {[%clk 0:00:05]} 40. Rh6 {[%clk 0:00:13]}  Bc5 {[%clk 0:00:05]} 41. Rxh3 {[%clk 0:00:13]}  Bxa3 {[%clk 0:00:05]} 42. g4 {[%clk 0:00:14]}  Bc5 {[%clk 0:00:05]} 43. g5 {[%clk 0:00:14]}  b4 {[%clk 0:00:06]} 44. g6 {[%clk 0:00:14]}  Bf8 {[%clk 0:00:06]} 45. g7 {[%clk 0:00:12]}  Bxg7 {[%clk 0:00:06]} 46. Rh7 {[%clk 0:00:13]}  Kc6 {[%clk 0:00:06]} 47. Rxg7 {[%clk 0:00:13]}  Kd5 {[%clk 0:00:07]} 48. Rb7 {[%clk 0:00:13]}  Ke4 {[%clk 0:00:07]} 49. e6 {[%clk 0:00:13]}  Kf5 {[%clk 0:00:08]} 50. e7 {[%clk 0:00:14]}  Kf6 {[%clk 0:00:08]} 51. e8=Q {[%clk 0:00:14]}  Rxh2+ {[%clk 0:00:08]} 52. Kxh2 {[%clk 0:00:14]}  b3 {[%clk 0:00:09]} 53. Qe7+ {[%clk 0:00:13]}  Kf5 {[%clk 0:00:09]} 54. Qe5+ {[%clk 0:00:13]}  Kg4 {[%clk 0:00:10]} 55. Qg5# {[%clk 0:00:14]} 1-0


[Site "https://www.chess.com"]

[Event "Titled Tuesday Blitz April 4 Early 2023"]
[White "Flores, Diego"]
[Black "Antal, Gergely"]
[WhiteFideId "108049"]
[BlackFideId "717312"]
[WhiteElo "2613"]
[BlackElo "2471"]
[Result "1-0"]
[Round "11"]
[TimeControl "180+2"]
[Date "2023.04.04"]
[WhiteClock "0:01:27"]
[BlackClock "0:00:44"]

1. c4 {[%clk 0:03:00]}  f5 {[%clk 0:02:57]} 2. g3 {[%clk 0:03:00]}  Nf6 {[%clk 0:02:58]} 3. Bg2 {[%clk 0:03:00]}  g6 {[%clk 0:02:57]} 4. Nc3 {[%clk 0:03:00]}  Bg7 {[%clk 0:02:58]} 5. d3 {[%clk 0:03:01]}  O-O {[%clk 0:02:58]} 6. e4 {[%clk 0:03:01]}  d6 {[%clk 0:02:59]} 7. Nge2 {[%clk 0:03:01]}  Nc6 {[%clk 0:02:59]} 8. O-O {[%clk 0:03:00]}  e5 {[%clk 0:02:59]} 9. Nd5 {[%clk 0:02:59]}  Kh8 {[%clk 0:02:36]} 10. Bg5 {[%clk 0:02:57]}  Be6 {[%clk 0:02:27]} 11. Qd2 {[%clk 0:02:53]}  Ne7 {[%clk 0:02:08]} 12. Nxf6 {[%clk 0:02:50]}  Bxf6 {[%clk 0:02:09]} 13. Bxf6+ {[%clk 0:02:50]}  Rxf6 {[%clk 0:02:09]} 14. exf5 {[%clk 0:02:42]}  Bxf5 {[%clk 0:01:42]} 15. Bxb7 {[%clk 0:02:33]}  Rb8 {[%clk 0:01:36]} 16. Bg2 {[%clk 0:02:33]}  Qd7 {[%clk 0:01:36]} 17. d4 {[%clk 0:02:30]}  Nc6 {[%clk 0:01:26]} 18. b3 {[%clk 0:02:26]}  Kg7 {[%clk 0:01:21]} 19. dxe5 {[%clk 0:01:57]}  Nxe5 {[%clk 0:01:20]} 20. f4 {[%clk 0:01:58]}  Nf7 {[%clk 0:01:06]} 21. Qc3 {[%clk 0:01:57]}  Re8 {[%clk 0:00:54]} 22. Nd4 {[%clk 0:01:49]}  Nh6 {[%clk 0:00:42]} 23. Bc6 {[%clk 0:01:39]}  Qd8 {[%clk 0:00:43]} 24. Bxe8 {[%clk 0:01:38]}  Qxe8 {[%clk 0:00:44]} 25. Rae1 {[%clk 0:01:35]}  Qa8 {[%clk 0:00:44]} 26. Re7+ {[%clk 0:01:27]} 1-0


[Site "https://www.chess.com"]

[Event "Titled Tuesday Blitz April 4 Early 2023"]
[White "Fishchuk, Vladyslav"]
[Black "Vakhlamov, Igor L."]
[WhiteFideId "34122117"]
[BlackFideId "24126748"]
[WhiteElo "2082"]
[BlackElo "2400"]
[Result "1-0"]
[Round "11"]
[TimeControl "180+2"]
[Date "2023.04.04"]
[WhiteClock "0:00:40"]
[BlackClock "0:00:02"]

1. d4 {[%clk 0:03:00]}  d5 {[%clk 0:02:59]} 2. Nc3 {[%clk 0:03:01]}  e6 {[%clk 0:03:00]} 3. Bf4 {[%clk 0:02:59]}  Bd6 {[%clk 0:02:55]} 4. e3 {[%clk 0:02:58]}  Ne7 {[%clk 0:02:53]} 5. Nf3 {[%clk 0:02:58]}  a6 {[%clk 0:02:50]} 6. Bd3 {[%clk 0:02:53]}  b5 {[%clk 0:02:46]} 7. a3 {[%clk 0:02:53]}  Bb7 {[%clk 0:02:45]} 8. O-O {[%clk 0:02:52]}  Nd7 {[%clk 0:02:37]} 9. Qe2 {[%clk 0:02:47]}  O-O {[%clk 0:02:27]} 10. Rad1 {[%clk 0:02:39]}  Rc8 {[%clk 0:02:18]} 11. Rfe1 {[%clk 0:02:36]}  Ng6 {[%clk 0:02:11]} 12. Bg3 {[%clk 0:02:26]}  Re8 {[%clk 0:02:01]} 13. e4 {[%clk 0:02:23]}  dxe4 {[%clk 0:02:00]} 14. Bxe4 {[%clk 0:02:21]}  Bxe4 {[%clk 0:01:53]} 15. Nxe4 {[%clk 0:02:22]}  Nf6 {[%clk 0:01:45]} 16. Nfd2 {[%clk 0:02:02]}  Bxg3 {[%clk 0:01:43]} 17. hxg3 {[%clk 0:01:53]}  Qxd4 {[%clk 0:01:36]} 18. c3 {[%clk 0:01:49]}  Qe5 {[%clk 0:01:26]} 19. Nxf6+ {[%clk 0:01:48]}  Qxf6 {[%clk 0:01:26]} 20. Ne4 {[%clk 0:01:48]}  Qe7 {[%clk 0:01:26]} 21. b4 {[%clk 0:01:45]}  Red8 {[%clk 0:01:23]} 22. Nc5 {[%clk 0:01:44]}  Rd6 {[%clk 0:01:16]} 23. a4 {[%clk 0:01:41]}  Rcd8 {[%clk 0:00:52]} 24. Rxd6 {[%clk 0:01:31]}  cxd6 {[%clk 0:00:53]} 25. Nxa6 {[%clk 0:01:29]}  bxa4 {[%clk 0:00:54]} 26. Ra1 {[%clk 0:01:26]}  Rc8 {[%clk 0:00:44]} 27. c4 {[%clk 0:01:24]}  Qd7 {[%clk 0:00:18]} 28. b5 {[%clk 0:01:21]}  f6 {[%clk 0:00:10]} 29. Rxa4 {[%clk 0:01:20]}  Ne5 {[%clk 0:00:09]} 30. f4 {[%clk 0:01:13]}  Nf7 {[%clk 0:00:08]} 31. Rb4 {[%clk 0:01:10]}  Nd8 {[%clk 0:00:07]} 32. Qe3 {[%clk 0:01:06]}  Kf7 {[%clk 0:00:07]} 33. Kh2 {[%clk 0:01:02]}  Qb7 {[%clk 0:00:05]} 34. Qd3 {[%clk 0:00:59]}  Qd7 {[%clk 0:00:02]} 35. Qxh7 {[%clk 0:00:58]}  d5 {[%clk 0:00:03]} 36. c5 {[%clk 0:00:56]}  d4 {[%clk 0:00:03]} 37. c6 {[%clk 0:00:53]}  Qd6 {[%clk 0:00:03]} 38. Qd3 {[%clk 0:00:45]}  e5 {[%clk 0:00:02]} 39. fxe5 {[%clk 0:00:42]}  fxe5 {[%clk 0:00:01]} 40. Qf5+ {[%clk 0:00:42]}  Qf6 {[%clk 0:00:01]} 41. Qxc8 {[%clk 0:00:42]}  Qh6+ {[%clk 0:00:01]} 42. Qh3 {[%clk 0:00:41]}  Qd2 {[%clk 0:00:02]} 43. c7 {[%clk 0:00:40]} 1-0


[Site "https://www.chess.com"]

[Event "Titled Tuesday Blitz April 4 Early 2023"]
[White "Kosteniuk, Alexandra"]
[Black "Yeletsky, Ivan"]
[WhiteFideId "4128125"]
[BlackFideId "24180327"]
[WhiteElo "2453"]
[BlackElo "2422"]
[Result "1-0"]
[Round "11"]
[TimeControl "180+2"]
[Date "2023.04.04"]
[WhiteClock "0:00:50"]
[BlackClock "0:00:12"]

1. e4 {[%clk 0:03:00]}  e6 {[%clk 0:02:49]} 2. d4 {[%clk 0:03:00]}  d5 {[%clk 0:02:49]} 3. Nc3 {[%clk 0:03:00]}  Bb4 {[%clk 0:02:50]} 4. a3 {[%clk 0:03:00]}  Bxc3+ {[%clk 0:02:46]} 5. bxc3 {[%clk 0:03:01]}  dxe4 {[%clk 0:02:47]} 6. Qg4 {[%clk 0:03:02]}  Nf6 {[%clk 0:02:48]} 7. Qxg7 {[%clk 0:03:02]}  Rg8 {[%clk 0:02:49]} 8. Qh6 {[%clk 0:03:02]}  Rg6 {[%clk 0:02:46]} 9. Qe3 {[%clk 0:02:55]}  b6 {[%clk 0:02:35]} 10. Bb2 {[%clk 0:02:51]}  Bb7 {[%clk 0:02:23]} 11. c4 {[%clk 0:02:51]}  Nbd7 {[%clk 0:02:22]} 12. Nh3 {[%clk 0:02:45]}  Qe7 {[%clk 0:02:20]} 13. Nf4 {[%clk 0:02:43]}  Rg8 {[%clk 0:02:19]} 14. Qc3 {[%clk 0:02:33]}  O-O-O {[%clk 0:01:57]} 15. h3 {[%clk 0:02:33]}  c5 {[%clk 0:01:47]} 16. d5 {[%clk 0:02:26]}  exd5 {[%clk 0:01:44]} 17. cxd5 {[%clk 0:02:25]}  e3 {[%clk 0:01:04]} 18. Qxe3 {[%clk 0:02:13]}  Qxe3+ {[%clk 0:01:04]} 19. fxe3 {[%clk 0:02:14]}  Nxd5 {[%clk 0:01:05]} 20. Nxd5 {[%clk 0:02:10]}  Bxd5 {[%clk 0:01:06]} 21. Kf2 {[%clk 0:02:06]}  Be4 {[%clk 0:01:02]} 22. Rc1 {[%clk 0:01:58]}  Nf8 {[%clk 0:00:57]} 23. Bc3 {[%clk 0:01:56]}  Ne6 {[%clk 0:00:56]} 24. Rg1 {[%clk 0:01:54]}  f5 {[%clk 0:00:49]} 25. Bc4 {[%clk 0:01:52]}  Rg6 {[%clk 0:00:45]} 26. a4 {[%clk 0:01:43]}  Kc7 {[%clk 0:00:39]} 27. Be5+ {[%clk 0:01:36]}  Kc6 {[%clk 0:00:39]} 28. Rcd1 {[%clk 0:01:27]}  Rxd1 {[%clk 0:00:36]} 29. Rxd1 {[%clk 0:01:27]}  Rxg2+ {[%clk 0:00:36]} 30. Kf1 {[%clk 0:01:28]}  Ng5 {[%clk 0:00:16]} 31. Bb5+ {[%clk 0:01:11]}  Kb7 {[%clk 0:00:17]} 32. Rd7+ {[%clk 0:01:07]}  Kc8 {[%clk 0:00:16]} 33. Rc7+ {[%clk 0:01:03]}  Kd8 {[%clk 0:00:17]} 34. Rg7 {[%clk 0:01:02]}  h6 {[%clk 0:00:12]} 35. Bf6+ {[%clk 0:00:49]}  Kc8 {[%clk 0:00:12]} 36. Ba6+ {[%clk 0:00:50]} 1-0


[Site "https://www.chess.com"]

[Event "Titled Tuesday Blitz April 4 Early 2023"]
[White "Manukyan, Sargis A."]
[Black "Costachi, Mihnea"]
[WhiteFideId "13303970"]
[BlackFideId "1217518"]
[WhiteElo "2187"]
[BlackElo "2456"]
[Result "1-0"]
[Round "11"]
[TimeControl "180+2"]
[Date "2023.04.04"]
[WhiteClock "0:00:13"]
[BlackClock "0:00:13"]

1. d4 {[%clk 0:03:00]}  c5 {[%clk 0:02:59]} 2. d5 {[%clk 0:02:59]}  Nf6 {[%clk 0:02:59]} 3. c4 {[%clk 0:02:56]}  g6 {[%clk 0:02:58]} 4. Nc3 {[%clk 0:02:57]}  Bg7 {[%clk 0:02:59]} 5. Nf3 {[%clk 0:02:57]}  O-O {[%clk 0:02:59]} 6. h3 {[%clk 0:02:58]}  e6 {[%clk 0:02:59]} 7. e4 {[%clk 0:02:57]}  d6 {[%clk 0:02:59]} 8. Be2 {[%clk 0:02:57]}  a6 {[%clk 0:02:57]} 9. a4 {[%clk 0:02:56]}  e5 {[%clk 0:02:56]} 10. O-O {[%clk 0:02:56]}  Ne8 {[%clk 0:02:56]} 11. Ne1 {[%clk 0:02:51]}  h6 {[%clk 0:02:56]} 12. Nd3 {[%clk 0:02:51]}  Nd7 {[%clk 0:02:53]} 13. f4 {[%clk 0:02:50]}  exf4 {[%clk 0:02:53]} 14. Bxf4 {[%clk 0:02:50]}  Qe7 {[%clk 0:02:49]} 15. Qd2 {[%clk 0:02:43]}  Kh7 {[%clk 0:02:49]} 16. Rae1 {[%clk 0:02:42]}  Ne5 {[%clk 0:02:49]} 17. Nxe5 {[%clk 0:02:37]}  dxe5 {[%clk 0:02:50]} 18. Be3 {[%clk 0:02:20]}  b6 {[%clk 0:02:50]} 19. a5 {[%clk 0:02:18]}  bxa5 {[%clk 0:02:33]} 20. Na4 {[%clk 0:02:17]}  f5 {[%clk 0:02:32]} 21. Bxc5 {[%clk 0:02:10]}  Nd6 {[%clk 0:02:32]} 22. exf5 {[%clk 0:02:09]}  gxf5 {[%clk 0:02:28]} 23. Qxa5 {[%clk 0:02:09]}  e4 {[%clk 0:02:22]} 24. Nb6 {[%clk 0:01:41]}  Rb8 {[%clk 0:02:21]} 25. Nxc8 {[%clk 0:01:41]}  Rbxc8 {[%clk 0:02:21]} 26. Ba3 {[%clk 0:01:36]}  Rg8 {[%clk 0:02:07]} 27. Rxf5 {[%clk 0:01:31]}  Qa7+ {[%clk 0:02:07]} 28. Rf2 {[%clk 0:00:59]}  Bd4 {[%clk 0:02:07]} 29. Rf1 {[%clk 0:00:59]}  Rcf8 {[%clk 0:01:21]} 30. Bxd6 {[%clk 0:00:57]}  Bxf2+ {[%clk 0:01:21]} 31. Kh1 {[%clk 0:00:56]}  Qg7 {[%clk 0:01:21]} 32. Bg4 {[%clk 0:00:45]}  Rf7 {[%clk 0:01:08]} 33. Qd2 {[%clk 0:00:26]}  e3 {[%clk 0:01:08]} 34. Qd3+ {[%clk 0:00:23]}  Qg6 {[%clk 0:01:08]} 35. Qxg6+ {[%clk 0:00:16]}  Rxg6 {[%clk 0:01:08]} 36. Bb4 {[%clk 0:00:09]}  Rf4 {[%clk 0:00:44]} 37. Be2 {[%clk 0:00:09]}  Kg8 {[%clk 0:00:35]} 38. Bc3 {[%clk 0:00:09]}  Kf8 {[%clk 0:00:33]} 39. g4 {[%clk 0:00:10]}  h5 {[%clk 0:00:31]} 40. Kg2 {[%clk 0:00:11]}  hxg4 {[%clk 0:00:31]} 41. hxg4 {[%clk 0:00:11]}  Ke7 {[%clk 0:00:28]} 42. b3 {[%clk 0:00:12]}  Kd7 {[%clk 0:00:26]} 43. Bb4 {[%clk 0:00:13]}  Rh6 {[%clk 0:00:22]} 44. Bc5 {[%clk 0:00:13]}  Rf7 {[%clk 0:00:20]} 45. Bd4 {[%clk 0:00:12]}  Rfh7 {[%clk 0:00:20]} 46. g5 {[%clk 0:00:12]}  Rh2+ {[%clk 0:00:19]} 47. Kf3 {[%clk 0:00:12]}  R7h3+ {[%clk 0:00:20]} 48. Ke4 {[%clk 0:00:13]}  Rh4+ {[%clk 0:00:20]} 49. Kd3 {[%clk 0:00:13]}  Rg4 {[%clk 0:00:21]} 50. Bxg4+ {[%clk 0:00:14]}  Kd6 {[%clk 0:00:20]} 51. Ke4 {[%clk 0:00:11]}  Ke7 {[%clk 0:00:19]} 52. c5 {[%clk 0:00:10]}  Rh4 {[%clk 0:00:19]} 53. d6+ {[%clk 0:00:11]}  Kd8 {[%clk 0:00:18]} 54. Kf5 {[%clk 0:00:11]}  Rxg4 {[%clk 0:00:14]} 55. Bf6+ {[%clk 0:00:11]}  Ke8 {[%clk 0:00:11]} 56. Kxg4 {[%clk 0:00:11]}  e2 {[%clk 0:00:12]} 57. Rh1 {[%clk 0:00:11]}  Kd7 {[%clk 0:00:11]} 58. b4 {[%clk 0:00:10]}  e1=Q {[%clk 0:00:11]} 59. Rxe1 {[%clk 0:00:10]}  Bxe1 {[%clk 0:00:12]} 60. g6 {[%clk 0:00:11]}  Ke6 {[%clk 0:00:11]} 61. g7 {[%clk 0:00:11]}  Kf7 {[%clk 0:00:12]} 62. d7 {[%clk 0:00:12]}  Bxb4 {[%clk 0:00:12]} 63. d8=Q {[%clk 0:00:12]}  Bxc5 {[%clk 0:00:13]} 64. g8=Q# {[%clk 0:00:13]} 1-0


[Site "https://www.chess.com"]

[Event "Titled Tuesday Blitz April 4 Early 2023"]
[White "Zhao, Jun"]
[Black "Bodnaruk, Anastasia"]
[WhiteFideId "8602522"]
[BlackFideId "4181751"]
[WhiteElo "2547"]
[BlackElo "2310"]
[Result "1-0"]
[Round "11"]
[TimeControl "180+2"]
[Date "2023.04.04"]
[WhiteClock "0:00:05"]
[BlackClock "0:00:04"]

1. Nf3 {[%clk 0:02:51]}  Nf6 {[%clk 0:02:59]} 2. d4 {[%clk 0:02:51]}  g6 {[%clk 0:02:59]} 3. c4 {[%clk 0:02:52]}  Bg7 {[%clk 0:03:00]} 4. Nc3 {[%clk 0:02:52]}  O-O {[%clk 0:03:00]} 5. e4 {[%clk 0:02:52]}  d6 {[%clk 0:03:01]} 6. h3 {[%clk 0:02:52]}  e5 {[%clk 0:02:58]} 7. d5 {[%clk 0:02:52]}  Nh5 {[%clk 0:02:56]} 8. g3 {[%clk 0:02:53]}  Qe8 {[%clk 0:02:54]} 9. Be2 {[%clk 0:02:52]}  f5 {[%clk 0:02:54]} 10. exf5 {[%clk 0:02:52]}  gxf5 {[%clk 0:02:55]} 11. Ng5 {[%clk 0:02:53]}  Nf6 {[%clk 0:02:55]} 12. g4 {[%clk 0:02:49]}  f4 {[%clk 0:02:51]} 13. Qc2 {[%clk 0:02:41]}  e4 {[%clk 0:02:26]} 14. Ncxe4 {[%clk 0:02:38]}  Nxe4 {[%clk 0:02:24]} 15. Qxe4 {[%clk 0:02:37]}  Qxe4 {[%clk 0:02:22]} 16. Nxe4 {[%clk 0:02:37]}  f3 {[%clk 0:02:20]} 17. Bd3 {[%clk 0:02:36]}  Na6 {[%clk 0:02:18]} 18. Kd1 {[%clk 0:02:23]}  Bd7 {[%clk 0:02:11]} 19. Rb1 {[%clk 0:02:05]}  Nb4 {[%clk 0:02:08]} 20. Kd2 {[%clk 0:01:51]}  Rae8 {[%clk 0:01:54]} 21. a3 {[%clk 0:01:48]}  Nxd3 {[%clk 0:01:50]} 22. Kxd3 {[%clk 0:01:49]}  c6 {[%clk 0:01:32]} 23. Nxd6 {[%clk 0:01:46]}  Re2 {[%clk 0:01:30]} 24. Be3 {[%clk 0:01:42]}  cxd5 {[%clk 0:01:29]} 25. cxd5 {[%clk 0:01:41]}  Ba4 {[%clk 0:01:07]} 26. b3 {[%clk 0:01:25]}  Bd7 {[%clk 0:00:56]} 27. a4 {[%clk 0:01:11]}  Be5 {[%clk 0:00:31]} 28. Nxb7 {[%clk 0:00:58]}  Bf4 {[%clk 0:00:30]} 29. Nc5 {[%clk 0:00:54]}  Bxe3 {[%clk 0:00:20]} 30. fxe3 {[%clk 0:00:54]}  Bc8 {[%clk 0:00:18]} 31. Rbf1 {[%clk 0:00:20]}  Rg2 {[%clk 0:00:17]} 32. Ke4 {[%clk 0:00:17]}  f2 {[%clk 0:00:17]} 33. b4 {[%clk 0:00:14]}  Rg3 {[%clk 0:00:17]} 34. Rh2 {[%clk 0:00:11]}  Re8+ {[%clk 0:00:16]} 35. Kd4 {[%clk 0:00:11]}  Rgxe3 {[%clk 0:00:16]} 36. Rhxf2 {[%clk 0:00:11]}  Ra3 {[%clk 0:00:12]} 37. Rf3 {[%clk 0:00:10]}  Ra2 {[%clk 0:00:12]} 38. d6 {[%clk 0:00:10]}  Rd8 {[%clk 0:00:11]} 39. Kd5 {[%clk 0:00:06]}  Rd2+ {[%clk 0:00:11]} 40. Rd3 {[%clk 0:00:07]}  Rb2 {[%clk 0:00:08]} 41. b5 {[%clk 0:00:06]}  Rb4 {[%clk 0:00:04]} 42. Kc6 {[%clk 0:00:06]}  Rc4 {[%clk 0:00:03]} 43. Re1 {[%clk 0:00:03]}  Bd7+ {[%clk 0:00:03]} 44. Kd5 {[%clk 0:00:03]}  Rb4 {[%clk 0:00:02]} 45. Nxd7 {[%clk 0:00:04]}  Rxd7 {[%clk 0:00:03]} 46. Re7 {[%clk 0:00:04]}  Rd8 {[%clk 0:00:03]} 47. Rde3 {[%clk 0:00:03]}  Rxa4 {[%clk 0:00:03]} 48. Re8+ {[%clk 0:00:04]}  Rxe8 {[%clk 0:00:04]} 49. Rxe8+ {[%clk 0:00:04]}  Kf7 {[%clk 0:00:04]} 50. d7 {[%clk 0:00:05]}  Rb4 {[%clk 0:00:04]} 51. d8=Q {[%clk 0:00:05]}  Rxb5+ {[%clk 0:00:04]} 52. Kc4 {[%clk 0:00:05]}  Rb6 {[%clk 0:00:04]} 53. Qe7+ {[%clk 0:00:05]} 1-0


[Site "https://www.chess.com"]